fUSD/lending_fUSD_20260419
["ID","MTS","AMOUNT","RATE_DAILY","PERIOD"]
[420834586,1776606643956,-1771.45,0.000179,2]
[420834587,1776606643967,-1867.33,0.000179,2]
[420834588,1776606643977,-152.0,0.00018029,3]
[420834589,1776606643987,-3000.0,0.00018082,7]
[420834590,1776606643999,-1146.54,0.000181,2]
[420834591,1776606644010,-217.80506813,0.00018172,2]
[420834592,1776606644021,-1800.2,0.00018173,2]
[420834594,1776606644031,-154.4,0.00018223,2]
[420834595,1776606644041,-847.22,0.000184,7]
[420834596,1776606644051,-250.0,0.00018443,2]
[420834597,1776606644062,-1116.0,0.00018494,2]
[420834598,1776606644073,-150.0,0.00018834,2]
[420834600,1776606644084,-154.4,0.0001884,2]
[420834601,1776606644095,-17648.53848341,0.00018846,2]
[420834602,1776606644107,-152.0,0.00018902,4]
[420834603,1776606644117,-235.0,0.00019,2]
[420834604,1776606644128,-1800.2,0.00019041,2]
[420834605,1776606644138,-8532.4742958,0.00019122,2]
[420834606,1776606644149,-279.14558714,0.0001914,20]
[420834607,1776606644159,-3000.0,0.00019178,7]
[420834608,1776606644170,-150.0,0.00019178,2]
[420834609,1776606644181,-150.0,0.00019178,2]
[420834610,1776606644192,-150.0,0.00019178,2]
[420834611,1776606644202,-182.0994755,0.00019178,2]
[420834612,1776606644213,-250.0,0.00019178,2]
[420834613,1776606644224,-250.0,0.00019178,2]
[420834614,1776606644235,-250.0,0.00019178,2]
[420834615,1776606644246,-257.7663117,0.00019178,2]
[420834616,1776606644256,-1116.0,0.00019419,2]
[420834617,1776606644266,-300.0,0.00019433,2]
[420834618,1776606644276,-300.0,0.00019433,2]
[420834619,1776606644286,-300.0,0.00019433,2]
[420834620,1776606644297,-300.0,0.00019433,2]
[420834621,1776606644307,-300.0,0.00019433,2]
[420834622,1776606644317,-300.0,0.00019433,2]
[420834623,1776606644328,-300.0,0.00019433,2]
[420834624,1776606644340,-420.0,0.00019433,2]
[420834625,1776606644351,-150.0,0.00019433,2]
[420834626,1776606644362,-150.0,0.00019433,2]
[420834627,1776606644371,-150.0,0.00019433,2]
[420834628,1776606644382,-150.0,0.00019433,2]
[420834629,1776606644392,-284.0,0.00019433,2]
[420834630,1776606644402,-150.0,0.00019433,2]
[420834631,1776606644413,-150.0,0.00019433,2]
[420834632,1776606644425,-150.0,0.00019433,2]
[420834633,1776606644435,-150.0,0.00019433,2]
[420834634,1776606644444,-150.0,0.00019433,2]
[420834635,1776606644455,-150.0,0.00019433,2]
[420834636,1776606644465,-150.0,0.00019433,2]
[420834637,1776606644475,-150.0,0.00019433,2]
[420834638,1776606644485,-450.0,0.00019433,2]
[420834639,1776606644496,-450.0,0.00019433,2]
[420834640,1776606644506,-450.0,0.00019433,2]
[420834641,1776606644515,-450.0,0.00019433,2]
[420834642,1776606644525,-450.0,0.00019433,2]
[420834643,1776606644535,-450.0,0.00019433,2]
[420834644,1776606644544,-450.0,0.00019433,2]
[420834645,1776606644555,-450.0,0.00019433,2]
[420834646,1776606644564,-516.0,0.00019433,2]
[420834647,1776606644574,-200.0,0.00019433,2]
[420834648,1776606644584,-200.0,0.00019433,2]
[420834649,1776606644593,-200.0,0.00019433,2]
[420834650,1776606644603,-200.0,0.00019433,2]
[420834651,1776606644613,-200.0,0.00019433,2]
[420834652,1776606644622,-200.0,0.00019433,2]
[420834653,1776606644632,-200.0,0.00019433,2]
[420834654,1776606644641,-200.0,0.00019433,2]
[420834655,1776606644651,-290.0,0.00019433,2]
[420834656,1776606644661,-550.0,0.00019433,2]
[420834657,1776606644671,-550.0,0.00019433,2]
[420834658,1776606644681,-550.0,0.00019433,2]
[420834659,1776606644691,-550.0,0.00019433,2]
[420834660,1776606644701,-550.0,0.00019433,2]
[420834661,1776606644711,-550.0,0.00019433,2]
[420834662,1776606644721,-550.0,0.00019433,2]
[420834663,1776606644731,-550.0,0.00019433,2]
[420834664,1776606644742,-550.0,0.00019433,2]
[420834665,1776606644752,-181.0,0.00019433,2]
[420834666,1776606644762,-152.0,0.00019458,7]
[420834667,1776606644771,-152.0,0.00019458,7]
[420834668,1776606644781,-152.0,0.00019458,7]
[420834669,1776606644791,-152.0,0.00019458,7]
[420834670,1776606644801,-152.0,0.00019458,7]
[420834671,1776606644811,-152.0,0.00019458,7]
[420834672,1776606644822,-1796.75,0.000196,2]
[420834673,1776606644831,-500.0,0.00019726,7]
[420834674,1776606644841,-152.0,0.00019776,5]
[420834675,1776606644852,-1867.33,0.000198,7]
[420834676,1776606644862,-1400.0,0.00019834,2]
[420834677,1776606644871,-1400.0,0.00019834,2]
[420834678,1776606644881,-1400.0,0.00019834,2]
[420834679,1776606644891,-922.0,0.00019834,2]
[420834680,1776606644901,-150.0,0.00019834,2]
[420834681,1776606644911,-501.78,0.0001985,9]
[420834682,1776606644921,-500.0,0.0001985,9]
[420834683,1776606644931,-500.0,0.0001985,9]
[420834684,1776606644940,-1094.35,0.00019899,2]
[420834685,1776606644950,-628.58,0.00019899,2]
[420834686,1776606644960,-16562.44599147,0.000199,2]
[420834687,1776606644970,-1800.2,0.00019908,2]
[420834688,1776606644980,-300.6613527,0.00019983,58]
[420834689,1776606644990,-845.99,0.00019999,2]
[420834690,1776606644999,-1094.35,0.00019999,2]
[420834691,1776606645009,-628.58,0.00019999,2]
[420834692,1776606645019,-223.41093912,0.0002,90]
[420834693,1776606645028,-927.0,0.0002,2]
[420834694,1776606645039,-158.99,0.0002,8]
[420834695,1776606645049,-321355.99882118,0.0002,2]
[420834696,1776606645059,-151.0,0.0002,2]
[420834697,1776606645068,-150.0,0.0002,2]
[420834698,1776606645078,-150.0,0.0002,2]
[420834699,1776606645088,-166.30202737,0.0002,2]
[420834700,1776606645097,-235.0,0.0002,2]
[420834701,1776606645108,-997.0,0.0002,2]
[420834702,1776606645118,-723.64,0.0002,30]
[420834703,1776606645128,-2000.0,0.000201,2]
[420834704,1776606645138,-845.99,0.00020224,2]
[420834705,1776606645148,-17648.53848341,0.00020363,2]
[420834706,1776606645160,-1312.16,0.00020384,2]
[420834707,1776606645169,-1116.0,0.0002039,2]
[420834708,1776606645179,-8532.4742958,0.00020567,2]
[420834709,1776606645189,-152.0,0.00020649,6]
[420834710,1776606645199,-1800.2,0.00020775,2]
[420834711,1776606645209,-1771.45,0.000208,2]
[420834712,1776606645219,-201.39435533,0.000208,2]
[420834713,1776606645229,-1168.503,0.00020808,2]
[420834714,1776606645240,-150.0,0.00020834,2]
[420834715,1776606645250,-1146.54,0.00021,2]
[420834716,1776606645260,-235.0,0.00021,2]
[420834717,1776606645270,-1094.35,0.00021099,2]
[420834718,1776606645281,-628.58,0.00021099,2]
[420834719,1776606645290,-179039.71,0.000211,2]
[420834720,1776606645300,-3000.0,0.0002137,7]
[420834721,1776606645310,-1116.0,0.0002141,2]
[420834722,1776606645321,-152.0,0.00021523,7]
[420834723,1776606645330,-845.99,0.0002158,2]
[420834724,1776606645341,-34755.60742443,0.00021581,7]
[420834725,1776606645351,-72462.58487343,0.00021581,7]
[420834726,1776606645360,-1867.33,0.000216,7]
[420834727,1776606645370,-1800.2,0.00021643,2]
[420834728,1776606645380,-1796.75,0.000218,2]
[420834729,1776606645389,-150.0,0.00021834,2]
[420834730,1776606645399,-17648.53848341,0.00021881,2]
[420834731,1776606645409,-5000.0,0.00021918,2]
[420834732,1776606645419,-450.39953724,0.00021918,10]
[420834733,1776606645429,-193.08855152,0.00021918,10]
[420834734,1776606645438,-156.0,0.00021918,30]
[420834735,1776606645448,-150.0,0.00021918,2]
[420834736,1776606645457,-150.0,0.00021918,2]
[420834737,1776606645467,-150.0,0.00021918,2]
[420834738,1776606645476,-150.0,0.00021918,2]
[420834739,1776606645486,-150.0,0.00021918,2]
[420834740,1776606645497,-150.0,0.00021918,2]
[420834741,1776606645507,-150.0,0.00021918,2]
[420834742,1776606645517,-150.0,0.00021918,2]
[420834743,1776606645527,-150.0,0.00021918,2]
[420834744,1776606645537,-150.0,0.00021918,2]
[420834745,1776606645547,-150.0,0.00021918,2]
[420834746,1776606645558,-150.0,0.00021918,2]
[420834747,1776606645568,-150.0,0.00021918,2]
[420834748,1776606645578,-150.0,0.00021918,2]
[420834749,1776606645587,-150.0,0.00021918,2]
[420834750,1776606645596,-150.0,0.00021918,2]
[420834751,1776606645606,-150.0,0.00021918,2]
[420834752,1776606645616,-150.0,0.00021918,2]
[420834753,1776606645627,-150.0,0.00021918,2]
[420834754,1776606645636,-150.0,0.00021918,2]
[420834755,1776606645646,-150.0,0.00021918,2]
[420834756,1776606645655,-150.38344432,0.00021918,2]
[420834757,1776606645665,-150.0,0.00021918,2]
[420834758,1776606645677,-167.17585804,0.00021918,2]
[420834759,1776606645686,-150.0,0.00021918,2]
[420834760,1776606645696,-500.0,0.00021918,2]
[420834761,1776606645706,-500.0,0.00021918,2]
[420834762,1776606645715,-500.0,0.00021918,2]
[420834763,1776606645725,-500.0,0.00021918,2]
[420834764,1776606645735,-500.0,0.00021918,2]
[420834765,1776606645746,-500.0,0.00021918,2]
[420834766,1776606645755,-500.0,0.00021918,2]
[420834767,1776606645765,-500.0,0.00021918,2]
[420834768,1776606645775,-500.0,0.00021918,2]
[420834769,1776606645786,-500.0,0.00021918,2]
[420834770,1776606645796,-500.0,0.00021918,2]
[420834771,1776606645806,-500.0,0.00021918,2]
[420834772,1776606645817,-500.0,0.00021918,2]
[420834773,1776606645826,-500.0,0.00021918,2]
[420834774,1776606645836,-500.0,0.00021918,2]
[420834775,1776606645845,-500.0,0.00021918,2]
[420834776,1776606645855,-454.80246983,0.00021918,2]
[420834777,1776606645865,-500.0,0.00021918,2]
[420834778,1776606645874,-500.0,0.00021918,2]
[420834779,1776606645884,-204.08094189,0.00021918,2]
[420834780,1776606645894,-500.0,0.00021918,7]
[420834781,1776606645904,-1094.35,0.00021947,2]
[420834782,1776606645915,-628.58,0.00021947,2]
[420834783,1776606645925,-165.41,0.00022,2]
[420834784,1776606645934,-235.0,0.00022,2]
[420834785,1776606645945,-8532.4742958,0.00022011,2]
[420834786,1776606645954,-723.64,0.00022188,30]
[420834787,1776606645965,-152.0,0.00022333,7]
[420834788,1776606645975,-152.0,0.00022333,7]
[420834789,1776606645984,-152.0,0.00022396,8]
[420834790,1776606645994,-1116.0,0.0002248,2]
[420834791,1776606646004,-1800.2,0.0002251,2]
[420834792,1776606646015,-152.0,0.0002274,3]
[420834793,1776606646024,-150.0,0.00022834,2]
[420834794,1776606646035,-25000.0,0.000229,7]
[420834795,1776606646063,-2500.0,0.000229,8]
[420834796,1776606646073,-25000.0,0.00022908,7]
[420834797,1776606646082,-25000.0,0.00022917,7]
[420834798,1776606646092,-25000.0,0.00022926,7]
[420834799,1776606646102,-25000.0,0.00022935,7]
[420834800,1776606646111,-25000.0,0.00022944,7]
[420834801,1776606646121,-25000.0,0.00022952,7]
[420834802,1776606646131,-25000.0,0.00022961,7]
[420834803,1776606646140,-1094.35,0.00022969,2]
[420834804,1776606646150,-628.58,0.00022969,2]
[420834805,1776606646160,-25000.0,0.0002297,7]
[420834809,1776606646382,-25000.0,0.00022979,7]
[420834810,1776606646391,-25000.0,0.00022988,7]
[420834811,1776606646400,-25000.0,0.00022996,7]
[420834812,1776606646410,-845.99,0.00022999,2]
[420834813,1776606646419,-845.99,0.00022999,2]
[420834814,1776606646428,-845.99,0.00022999,2]
[420834815,1776606646438,-845.99,0.00022999,2]
[420834816,1776606646447,-846.05,0.00022999,2]
[420834817,1776606646456,-1094.35,0.00022999,2]
[420834818,1776606646465,-628.58,0.00022999,2]
[420834819,1776606646474,-24646.74689737,0.00023,7]
[420834822,1776606648485,-842.77482899,0.00023,7]
[420834823,1776606648497,-1132.68254729,0.00023,7]
[420834824,1776606648533,-352.68772864,0.00023,7]
[420834825,1776606648548,-5903.718551,0.00023,7]
[420834826,1776606648563,-48829.746,0.00023,7]
[420834827,1776606648576,-8355.461751,0.00023,7]
[420834828,1776606648589,-36008.590824,0.00023,7]
[420834829,1776606648600,-2314.85243339,0.00023,7]
[420834830,1776606648621,-40989.03429514,0.00023,7]
[420834831,1776606648922,-489.07,0.00022,30]
[420834832,1776606648933,-9663.41414318,0.00023,7]
[420834833,1776606648942,-235.0,0.00023,2]
[420834834,1776606648952,-1867.33,0.00023,7]
[420834835,1776606648961,-171.0,0.00023,7]
[420834836,1776606648971,-25000.0,0.00023005,7]
[420834837,1776606648980,-25000.0,0.00023014,7]
[420834838,1776606648990,-25000.0,0.00023023,7]
[420834839,1776606648999,-25000.0,0.00023032,7]
[420834840,1776606649009,-25000.0,0.00023036,7]
[420834841,1776606649018,-25000.0,0.0002304,7]
[420834842,1776606649028,-25000.0,0.0002306,7]
[420834843,1776606649038,-25000.0,0.00023069,7]
[420834844,1776606649047,-1094.35,0.00023077,2]
[420834845,1776606649057,-628.58,0.00023077,2]
[420834846,1776606649066,-25000.0,0.00023078,7]
[420834847,1776606649076,-25000.0,0.00023078,7]
[420834848,1776606649086,-20035.5138992,0.00023087,7]
[420834849,1776606649098,-4964.4861008,0.00023087,7]
[420834850,1776606649107,-1596.74022114,0.00023087,7]
[420834851,1776606649547,-212.33669566,0.00013699,2]
[420834852,1776606649557,-23403.25977886,0.00023087,7]
[420834853,1776606649566,-10350.43315558,0.00023087,7]
[420834854,1776606649577,-8150.42073168,0.00023087,7]
[420834855,1776606649606,-674.77981893,0.00023087,7]
[420834856,1776606649649,-5291.912054,0.00023087,7]
[420834857,1776606649660,-532.45423981,0.00023087,7]
[420834858,1776606649670,-21045.79783618,0.00023095,7]
[420834859,1776606649681,-3954.20216382,0.00023095,7]
[420834860,1776606649691,-900.89004202,0.00023095,7]
[420834861,1776606650671,14262.0,0.00032876,120]
[420834862,1776606650904,-2112.96802395,0.00023095,7]
[420834863,1776606650982,-1648.987276,0.00023095,7]
[420834864,1776606650993,-20337.15465803,0.00023095,7]
[420834865,1776606651004,-25000.0,0.00023095,7]
[420834866,1776606651015,-152.0,0.0002327,9]
[420834867,1776606651025,-706.01,0.000233,14]
[420834868,1776606651036,-1800.2,0.00023378,2]
[420834869,1776606651046,-17648.53848341,0.00023398,2]
[420834870,1776606651056,-8532.4742958,0.00023456,2]
[420834871,1776606651066,-3000.0,0.00023562,7]
[420834872,1776606651076,-3097.38598658,0.00023794,75]
[420834873,1776606651087,-2000.0,0.000238,2]
[420834874,1776606651096,-150.0,0.00023834,2]
[420834875,1776606651105,-1146.54,0.00024,7]
[420834876,1776606651116,-243.0,0.00024,2]
[420834877,1776606651125,-292.11927032,0.00024096,4]
[420834878,1776606651135,-500.0,0.0002411,7]
[420834879,1776606651146,-152.0,0.00024143,10]
[420834880,1776606651156,-171.0,0.00024164,7]
[420834881,1776606651166,-177.8251656,0.00024239,3]
[420834882,1776606651176,-1800.2,0.00024245,2]
[420834883,1776606651185,-328.51074236,0.000243,4]
[420834884,1776606651194,-723.64,0.00024376,60]
[420834885,1776606651204,-1867.33,0.000244,7]
[420834886,1776606651214,-1094.35,0.00024506,2]
[420834887,1776606651223,-628.58,0.00024506,2]
[420834888,1776606651233,-1094.35,0.00024594,2]
[420834889,1776606651242,-1094.35,0.00024594,2]
[420834890,1776606651252,-1094.35,0.00024594,2]
[420834891,1776606651261,-1094.35,0.00024594,2]
[420834892,1776606651270,-1094.45255361,0.00024594,2]
[420834893,1776606651279,-628.58,0.00024594,2]
[420834894,1776606651289,-628.58,0.00024594,2]
[420834895,1776606651298,-628.58,0.00024594,2]
[420834896,1776606651308,-628.58,0.00024594,2]
[420834897,1776606651318,-628.76246468,0.00024594,2]
[420834898,1776606651327,-1000.0,0.00024658,2]
[420834899,1776606651336,-2597.76953,0.00024672,30]
[420834900,1776606651346,-5000.6593,0.000248,2]
[420834901,1776606651355,-870.44,0.000248,2]
[420834902,1776606651364,-640.09,0.000248,2]
[420834903,1776606651374,-200.0,0.000248,2]
[420834904,1776606651383,-1312.16,0.00024822,2]
[420834905,1776606651392,-150.0,0.00024834,2]
[420834906,1776606651401,-157.0,0.000249,10]
[420834907,1776606651410,-406821.50509136,0.000249,2]
[420834908,1776606671718,2442.76454967,0.00010758,2]
[420834909,1776606697008,400.0,0.00032,120]
[420834910,1776606707052,3452.58,0.00032876,120]
[420834911,1776606707165,1000.0,0.00027397,120]
[420834912,1776606707468,1025.19145828,0.00030137,120]
[420834913,1776606715459,150.0,0.000123,120]
[420834914,1776606765222,3133.45,0.00032876,120]
[420834915,1776606810417,1639.3,0.00032602,120]
[420834916,1776606810458,1443.17,0.00032602,120]
[420834917,1776606811529,2835.83186339,0.0003287,120]
[420834918,1776606812739,1639.3,0.00032602,120]
[420834919,1776606812821,1443.17,0.00032602,120]
[420834920,1776606818295,1443.17,0.00032602,120]
[420834921,1776606818388,1639.3,0.00032602,120]
[420834922,1776606818584,1160.6558534,0.00032602,120]
[420834923,1776606818746,1639.3,0.00032602,120]
[420834924,1776606818833,376.0,0.0003287,120]
[420834925,1776606819539,684.0,0.0003287,120]
[420834926,1776606819848,1408.42364624,0.00032602,120]
[420834927,1776606819890,1482.0,0.0003287,120]
[420834928,1776606820640,1274.0,0.0003287,120]
[420834929,1776606821419,1946.0,0.0003287,120]
[420834930,1776606822403,405.0,0.0003287,120]
[420834931,1776606823196,668.0,0.0003287,120]
[420834932,1776606823985,1648.0,0.0003287,120]
[420834933,1776606825675,2149.52860755,0.00032876,120]
[420834934,1776606827020,169.0,0.0003287,120]
[420834935,1776606827808,329.0,0.0003287,120]
[420834936,1776606831685,341.0,0.0003287,120]
[420834937,1776606831831,494.0,0.0003287,120]
[420834938,1776606832092,2016.47919034,0.00032876,120]
[420834939,1776606835088,1632.41423,0.0003287,120]
[420834940,1776606837064,2319.570294,0.00025578,120]
[420834941,1776606837427,1468.702306,0.00025578,120]
[420834942,1776606845007,1000.0,0.00032877,120]
[420834943,1776606848939,5000.0,0.00032876,120]
[420834944,1776606857928,359.0,0.000328,120]
[420834945,1776606864828,210.71996695,0.00032844,120]
[420834946,1776606871551,14182.34727602,0.00032876,120]
[420834947,1776606871948,161.0,0.00032876,120]
[420834948,1776606872975,200.0,0.00032877,120]
[420834949,1776606885665,3347.72000098,0.0003287,120]
[420834950,1776606888639,7557.24545033,0.00010758,2]
[420834951,1776606888661,10000.01,0.00010758,2]
[420834952,1776606888683,2442.74454967,0.00010758,2]
[420834953,1776606888975,5000.0,0.00032876,120]
[420834954,1776606890269,1063.0,0.0003287,120]
[420834955,1776606891049,750.0,0.0003287,120]
[420834956,1776606891838,635.0,0.0003287,120]
[420834957,1776606892627,1098.0,0.0003287,120]
[420834958,1776606894645,324.74472953,0.0003287,120]
[420834959,1776606902980,525.07,0.000123,120]
[420834960,1776606903196,715.0,0.0002628,120]
[420834961,1776606903704,1000.0,0.00032877,120]
[420834962,1776606904499,715.0,0.00027594,120]
[420834963,1776606905755,715.0,0.00028974,120]
[420834964,1776606907025,715.0,0.00030423,120]
[420834965,1776606909788,715.0,0.00031944,120]
[420834966,1776606910056,450.0,0.00029957,120]
[420834967,1776606910616,450.0,0.00029957,120]
[420834968,1776606911433,347.0,0.00029957,120]
[420834969,1776606926450,1750.0,0.000299,120]
[420834970,1776606927349,1750.0,0.000299,120]
[420834971,1776606928142,1615.0,0.000299,120]
[420834972,1776606929001,5000.0,0.00032876,120]
[420834973,1776606956105,260.0,9.863e-05,2]
[420834974,1776606962552,200.0,0.00032877,120]
[420834975,1776606962765,1000.0,0.00032877,120]
[420834976,1776606966528,600.0,0.00030411,120]
[420834977,1776606969687,4187.85522986,0.00032876,120]
[420834978,1776606975887,200.0,0.00032877,120]
[420834979,1776606983741,200.0,0.00032877,120]
[420834980,1776606990468,200.0,0.00032877,120]
[420834981,1776606995438,1822.91,0.000158,30]
[420834982,1776606996947,200.0,0.00032877,120]
[420834983,1776607001718,1706.0,0.0003287,120]
[420834984,1776607001807,1336.0,0.0003287,120]
[420834985,1776607003175,200.0,0.00032877,120]
[420834986,1776607014205,1000.0,0.00027397,120]
[420834987,1776607014269,1000.0,0.00030137,120]
[420834988,1776607014657,1000.0,0.00032877,120]
[420834989,1776607014732,500.0,0.00032876,120]
[420834990,1776607014796,500.0,0.00032876,120]
[420834991,1776607014847,500.0,0.00032876,120]
[420834992,1776607014891,500.0,0.00032876,120]
[420834993,1776607014943,500.0,0.00032876,120]
[420834994,1776607014988,500.0,0.00032876,120]
[420834995,1776607015035,500.0,0.00032876,120]
[420834996,1776607015073,500.0,0.00032876,120]
[420834997,1776607015158,500.0,0.00032876,120]
[420834998,1776607015373,500.0,0.00032876,120]
[420834999,1776607015616,500.0,0.00032876,120]
[420835000,1776607015840,500.0,0.00032876,120]
[420835001,1776607016082,500.0,0.00032876,120]
[420835002,1776607016395,500.0,0.00032876,120]
[420835003,1776607016628,500.0,0.00032876,120]
[420835004,1776607016857,500.0,0.00032876,120]
[420835005,1776607017093,500.0,0.00032876,120]
[420835006,1776607017319,500.0,0.00032876,120]
[420835007,1776607017546,500.0,0.00032876,120]
[420835008,1776607017783,500.0,0.00032876,120]
[420835009,1776607017997,500.0,0.00032876,120]
[420835010,1776607018219,500.0,0.00032876,120]
[420835011,1776607018450,500.0,0.00032876,120]
[420835012,1776607018668,500.0,0.00032876,120]
[420835013,1776607018871,200.0,0.00032877,120]
[420835014,1776607019337,500.0,0.00032876,120]
[420835015,1776607019397,500.0,0.00032876,120]
[420835016,1776607019449,500.0,0.00032876,120]
[420835017,1776607019652,500.0,0.00032876,120]
[420835018,1776607019808,1000.0,0.00032877,120]
[420835019,1776607019865,500.0,0.00032876,120]
[420835020,1776607020083,500.0,0.00032876,120]
[420835021,1776607020308,500.0,0.00032876,120]
[420835022,1776607020534,500.0,0.00032876,120]
[420835023,1776607020791,500.0,0.00032876,120]
[420835024,1776607021048,500.0,0.00032876,120]
[420835025,1776607021273,500.0,0.00032876,120]
[420835026,1776607021491,500.0,0.00032876,120]
[420835027,1776607021707,500.0,0.00032876,120]
[420835028,1776607021933,500.0,0.00032876,120]
[420835029,1776607022209,500.0,0.00032876,120]
[420835030,1776607022429,500.0,0.00032876,120]
[420835031,1776607028864,500.0,0.00032876,120]
[420835032,1776607028908,2960.0,0.00032877,120]
[420835033,1776607029164,500.0,0.00032876,120]
[420835034,1776607029419,500.0,0.00032876,120]
[420835035,1776607029647,500.0,0.00032876,120]
[420835036,1776607029861,500.0,0.00032876,120]
[420835037,1776607030280,500.0,0.00032876,120]
[420835038,1776607030435,500.0,0.00032876,120]
[420835039,1776607030676,500.0,0.00032876,120]
[420835040,1776607030904,500.0,0.00032876,120]
[420835041,1776607031328,500.0,0.00032876,120]
[420835042,1776607031374,500.0,0.00032876,120]
[420835043,1776607031587,500.0,0.00032876,120]
[420835044,1776607031806,500.0,0.00032876,120]
[420835045,1776607032031,500.0,0.00032876,120]
[420835046,1776607032262,500.0,0.00032876,120]
[420835047,1776607032510,500.0,0.00032876,120]
[420835048,1776607032566,300.0,0.00029308,120]
[420835049,1776607032739,500.0,0.00032876,120]
[420835050,1776607032955,500.0,0.00032876,120]
[420835051,1776607033173,500.0,0.00032876,120]
[420835052,1776607033392,500.0,0.00032876,120]
[420835053,1776607033451,300.0,0.00029308,120]
[420835054,1776607033617,500.0,0.00032876,120]
[420835055,1776607033834,500.0,0.00032876,120]
[420835056,1776607034049,500.0,0.00032876,120]
[420835057,1776607034274,500.0,0.00032876,120]
[420835058,1776607034313,268.0,0.00029308,120]
[420835059,1776607034485,500.0,0.00032876,120]
[420835060,1776607034819,500.0,0.00032876,120]
[420835061,1776607035037,500.0,0.00032876,120]
[420835062,1776607035372,500.0,0.00032876,120]
[420835063,1776607035568,500.0,0.00032876,120]
[420835064,1776607035631,200.0,0.00032877,120]
[420835065,1776607035784,500.0,0.00032876,120]
[420835066,1776607036112,500.0,0.00032876,120]
[420835067,1776607036422,500.0,0.00032876,120]
[420835068,1776607036757,7297.26545033,0.00010758,2]
[420835069,1776607036779,10000.01,0.00010758,2]
[420835070,1776607036801,10000.01,0.00010758,2]
[420835071,1776607036825,10000.01,0.00010758,2]
[420835072,1776607037307,10000.01,0.00010758,2]
[420835073,1776607037332,10000.01,0.00010758,2]
[420835074,1776607041869,200.0,0.00032877,120]
[420835075,1776607042834,1000.0,0.00032877,120]
[420835076,1776607048757,500.0,0.00032876,120]
[420835077,1776607049161,500.0,0.00032876,120]
[420835078,1776607049400,500.0,0.00032876,120]
[420835079,1776607049624,500.0,0.00032876,120]
[420835080,1776607049853,500.0,0.00032876,120]
[420835081,1776607053924,500.0,0.00032876,120]
[420835082,1776607054009,500.0,0.00032876,120]
[420835083,1776607054163,500.0,0.00032876,120]
[420835084,1776607054577,500.0,0.00032876,120]
[420835085,1776607054736,500.0,0.00032876,120]
[420835086,1776607054853,500.0,0.00032876,120]
[420835087,1776607054974,500.0,0.00032876,120]
[420835088,1776607055102,500.0,0.00032876,120]
[420835089,1776607055169,500.0,0.00032876,120]
[420835090,1776607055299,500.0,0.00032876,120]
[420835091,1776607055418,1000.0,0.00032877,120]
[420835092,1776607055462,500.0,0.00032876,120]